fUST/lending_fUST_20250205
["ID","MTS","AMOUNT","RATE_DAILY","PERIOD"]
[351672543,1738705843312,-17794.00592042,0.00016,15]
[351672545,1738705843324,-13663.27911408,0.00016,15]
[351672547,1738705843536,-502.59999999,0.00016,15]
[351672548,1738705843550,-5405.92164194,0.00016,15]
[351672549,1738705843605,-1455.0,0.00016,15]
[351672550,1738705843680,-14548.35,0.00016,15]
[351672828,1738705846554,-50248.81343076,0.00016,15]
[351672831,1738705846566,-1401.74951982,0.00016,15]
[351672833,1738705846578,-3013.9379,0.00016,15]
[351672840,1738705846639,-869.89754438,0.00016,15]
[351672844,1738705846651,-654.0,0.00016,15]
[351672847,1738705846662,-14044.84711421,0.00016,15]
[351673924,1738705912513,500.0,0.00014164,2]
[351674091,1738707032935,-9050.54177968,0.00015651,2]
[351674094,1738707032948,-650.355,0.0001568,2]
[351674097,1738707032957,-300.0,0.00015838,2]
[351674100,1738707032968,-428.3204817,0.00015839,2]
[351674102,1738707032978,-3623.95096712,0.000159,2]
[351674104,1738707032989,-500.0,0.00015973,2]
[351674107,1738707033001,-500.0,0.00015973,2]
[351674111,1738707033014,-502.76136118,0.00015973,2]
[351674113,1738707033024,-500.0,0.00015973,2]
[351674115,1738707033035,-500.0,0.00015999,2]
[351674117,1738707033044,-449.61449807,0.00015999,2]
[351674118,1738707033054,-178.39396709,0.00015999,2]
[351674120,1738707033064,-513.99968803,0.00015999,2]
[351674123,1738707033074,-121762.13228575,0.00016,15]
[351674126,1738707033087,-1429.40234759,0.00016,15]
[351674130,1738707033098,-7281.23197513,0.00016,15]
[351674135,1738707033116,-749.57,0.00016,15]
[351674138,1738707033128,-650.84243801,0.00016,15]
[351674659,1738707038649,-60894.939253,0.00016,15]
[351674662,1738707038673,-8534.78753767,0.00016,15]
[351674664,1738707038685,-14308.02230772,0.00016,15]
[351674675,1738707038778,-8255.09259318,0.00016,15]
[351674677,1738707038789,-9717.32861038,0.00016,15]
[351674679,1738707038800,-3308.53977297,0.00016,15]
[351674681,1738707038811,-958.151295,0.00016,15]
[351674691,1738707038891,-1602.05303314,0.00016,15]
[351674848,1738707040632,-257.327746,0.00016,15]
[351674852,1738707040657,-492.5244137,0.00016,15]
[351674854,1738707040671,-64348.33208471,0.00016,15]
[351674856,1738707040683,-1069.03893575,0.00016,15]
[351675047,1738707042915,-19301.0888,0.00016,15]
[351675050,1738707042927,-3592.17408006,0.00016,15]
[351675052,1738707042941,-5931.08868453,0.00016,15]
[351675134,1738707043688,-1006.95426189,0.00016,15]
[351675136,1738707043700,-7834.8458057,0.00016,15]
[351675138,1738707043712,-547.58,0.00016,15]
[351675140,1738707043723,-496.33725965,0.00016,15]
[351675142,1738707043735,-14486.1,0.00016,15]
[351675144,1738707043746,-66418.27149561,0.00016,15]
[351675147,1738707043765,-328.89492814,0.00016,15]
[351675398,1738707046843,-46893.31779824,0.00016,15]
[351675401,1738707046856,-2023.824068,0.00016,15]
[351677226,1738707241019,3510.68114833,0.00015012,2]
[351677233,1738707934145,765.9228697,0.00014974,2]
[351677286,1738708231941,-160.305,0.000152,2]
[351677288,1738708231950,-520.284,0.0001568,2]
[351677290,1738708231959,-214.1602408,0.00015839,2]
[351677292,1738708231969,-2576.83812076,0.000159,2]
[351677294,1738708231980,-684.71774963,0.000159,2]
[351677296,1738708231989,-619.51926799,0.000159,2]
[351677298,1738708231998,-300.0,0.00015972,2]
[351677300,1738708232007,-500.0,0.00015973,2]
[351677302,1738708232016,-500.0,0.00015973,2]
[351677304,1738708232025,-120.53978488,0.00015973,2]
[351677307,1738708232037,-379.46021512,0.00015973,2]
[351677309,1738708232047,-500.0,0.00015973,2]
[351677310,1738708232055,-343.05508484,0.00015999,2]
[351677313,1738708232065,-16646.999479,0.00016,15]
[351677316,1738708232089,-18699.22396569,0.00016,15]
[351677322,1738708232139,-999.7066692,0.00016,15]
[351677725,1738708238268,-7845.92611805,0.00016,15]
[351677726,1738708238279,-2110.57618151,0.00016,15]
[351677735,1738708240150,-89962.02269834,0.00016,15]
[351677736,1738708240168,-782.01940785,0.00016,15]
[351677737,1738708240186,-97108.9482235,0.00016,15]
[351677763,1738708242898,-96672.82751745,0.00016,15]
[351677820,1738708246049,-103967.09274,0.00016,15]
[351677822,1738708246062,-10951.8601823,0.00016,15]
[351677825,1738708246077,-14801.24465227,0.00016,15]
[351677827,1738708246090,-1841.42091,0.00016,15]
[351678875,1738708322168,500.0,0.00014164,2]
[351678880,1738708799013,14018.9133184,0.00014992,2]
[351678881,1738708945982,179.368578,0.00014993,2]
[351678904,1738709432278,-416.227,0.0001568,2]
[351678905,1738709432288,-214.1602409,0.00015839,2]
[351678906,1738709432297,-542.0793595,0.00015899,2]
[351678907,1738709432306,-3013.91583784,0.000159,2]
[351678908,1738709432316,-49.43525613,0.00015937,2]
[351678909,1738709432362,-250.56474387,0.00015937,2]
[351678910,1738709432371,-141.41985613,0.00015938,2]
[351679049,1738709438051,-1600.21376286,0.00015938,2]
[351679051,1738709438063,-12401.70212796,0.00015938,2]
[351679053,1738709438072,-500.0,0.00015973,2]
[351679055,1738709438082,-500.0,0.00015973,2]
[351679057,1738709438092,-500.0,0.00015973,2]
[351679059,1738709438101,-302.0,0.00015989,2]
[351679061,1738709438110,-783.28958151,0.00015995,2]
[351679063,1738709438121,-212.41171452,0.00015998,2]
[351679065,1738709438133,-787.28837545,0.00015998,2]
[351679067,1738709438142,-226.39071994,0.00015999,2]
[351679070,1738709438160,-3821.39999955,0.00015999,2]
[351679073,1738709438171,-6879.26180604,0.00015999,2]
[351679075,1738709438182,-364.52002253,0.00015999,2]
[351679141,1738709441724,-9921.63924094,0.00015999,2]
[351679142,1738709441735,-500.0,0.00015999,2]
[351679143,1738709441745,-500.0,0.00015999,2]
[351679144,1738709441755,-500.0,0.00015999,2]
[351679145,1738709441766,-500.0,0.00015999,2]
[351679146,1738709441777,-500.0,0.00015999,2]
[351679147,1738709441786,-500.0,0.00015999,2]
[351679148,1738709441796,-500.0,0.00015999,2]
[351679149,1738709441806,-602.14377632,0.00015999,2]
[351679150,1738709441816,-236.29715902,0.00015999,2]
[351679151,1738709441826,-500.0,0.00015999,2]
[351679152,1738709441836,-463.3703477,0.00015999,2]
[351679153,1738709441845,-500.0,0.00015999,2]
[351679154,1738709441857,-500.0,0.00015999,2]
[351679155,1738709441867,-52671.47306541,0.00016,15]
[351679156,1738709441881,-9758.18549963,0.00016,15]
[351679157,1738709441893,-889.52865173,0.00016,15]
[351679392,1738710632431,-1927.16,0.000157,2]
[351679402,1738710632517,-962.0,0.000157,2]
[351679404,1738710632529,-2499.999995,0.000157,2]
[351679406,1738710632541,-443.84839656,0.000157,2]
[351679413,1738710632596,-955.18235113,0.000157,2]
[351679415,1738710632606,-290.9500322,0.00015839,2]
[351679417,1738710632615,-300.0,0.00015899,2]
[351679419,1738710632624,-760.47726315,0.000159,2]
[351679421,1738710632633,-161.64217845,0.000159,2]
[351679647,1738710640492,-261.0,0.000159,2]
[351679649,1738710640504,-2289.88207557,0.000159,2]
[351679650,1738710640515,-276.41,0.000159,2]
[351679651,1738710640525,-500.0,0.00015973,2]
[351679652,1738710640535,-500.0,0.00015973,2]
[351679653,1738710640546,-415.3025426,0.00015973,2]
[351679654,1738710640556,-500.0,0.00015973,2]
[351679655,1738710640566,-500.0,0.00015973,2]
[351679656,1738710640577,-506.76284795,0.00015973,2]
[351679657,1738710640587,-134432.21472268,0.00016,15]
[351679658,1738710640599,-9894.99335459,0.00016,15]
[351679659,1738710640636,-282.6,0.00016,15]
[351679660,1738710640649,-2838.15242301,0.00016,15]
[351679661,1738710640661,-2837.90000003,0.00016,15]
[351679720,1738710644165,-37354.25000161,0.00016,15]
[351679721,1738710644180,-2974.9999975,0.00016,15]
[351679723,1738710644263,-96296.5,0.00016,15]
[351679724,1738710644275,-3002.54363965,0.00016,15]
[351679725,1738710644288,-1179.47918,0.00016,15]
[351679726,1738710644300,-2954.79151319,0.00016,15]
[351679727,1738710644311,-2286.22159571,0.00016,15]
[351679728,1738710644322,-1591.80000001,0.00016,15]
[351679729,1738710644333,-3755.22,0.00016,15]
[351679730,1738710644344,-1620.49,0.00016,15]
[351679731,1738710644357,-7815.23811217,0.00016,15]
[351679735,1738710644387,-4091.1005755,0.00016,15]
[351679737,1738710644399,-283.23832618,0.00016,15]
[351679739,1738710644411,-713.74281636,0.00016,15]
[351679763,1738710646530,-86726.59031446,0.00016,15]
[351679764,1738710646542,-2099.9999998,0.00016,15]
[351679765,1738710646553,-5364.098721,0.00016,15]
[351679766,1738710646565,-838.22428339,0.00016,15]
[351679767,1738710646576,-314.99999992,0.00016,15]
[351679780,1738711426017,1434.00223587,0.00020453,120]
[351679828,1738711832717,-436.247,0.0001568,2]
[351679829,1738711832727,-1751.50479879,0.00015689,2]
[351679838,1738711838467,-5746.8257226,0.00015689,2]
[351679839,1738711838479,-406.9188857,0.00015839,2]
[351679840,1738711838490,-300.0,0.00015899,2]
[351679841,1738711838502,-2763.13059524,0.000159,2]
[351679842,1738711838513,-898.92942772,0.000159,2]
[351679843,1738711838525,-385.65898503,0.00015945,2]
[351679844,1738711838536,-500.0,0.00015973,2]
[351679845,1738711838547,-500.0,0.00015973,2]
[351679846,1738711838556,-500.0,0.00015973,2]
[351679847,1738711838566,-500.0,0.00015973,2]
[351679848,1738711838575,-500.0,0.00015973,2]
[351679849,1738711838585,-366.06273135,0.00015999,2]
[351679850,1738711838595,-500.0,0.00015999,2]
[351679851,1738711838604,-255.93040458,0.00015999,2]
[351679852,1738711838617,-221.46018382,0.00015999,2]
[351679853,1738711838627,-158.8013269,0.00015999,2]
[351679864,1738711840450,-341.1986731,0.00015999,2]
[351679865,1738711840459,-149.20800965,0.00015999,2]
[351679866,1738711840516,-337.55564085,0.00015999,2]
[351679867,1738711840526,-60956.85402253,0.00016,15]
[351679883,1738711843462,-2866.0,0.00016,15]
[351679884,1738711843503,-571.7499975,0.00016,15]
[351679894,1738711846572,-611.40515272,0.00015999,2]
[351679895,1738711846582,-534.00777728,0.00016,15]
[351679931,1738713032776,-159.837,0.000152,2]
[351679932,1738713032787,-225.13,0.00015634,2]
[351679933,1738713032798,-445.426,0.0001568,2]
[351679934,1738713032808,-7534.92041243,0.00015756,2]
[351679935,1738713032818,-300.0,0.00015819,2]
[351679936,1738713032828,-8993.5459541,0.0001582,2]
[351679937,1738713032838,-203.4594428,0.00015839,2]
[351679938,1738713032848,-165.46,0.0001589,2]
[351679939,1738713032858,-165.46,0.0001589,2]
[351679940,1738713032867,-177.41920022,0.00015898,2]
[351679941,1738713032878,-786.56324922,0.00015898,2]
[351679942,1738713032888,-177.41920022,0.00015899,2]
[351679943,1738713032898,-2486.81753577,0.000159,2]
[351679944,1738713032908,-177.41920022,0.000159,2]
[351679945,1738713032918,-28028.07710196,0.000159,2]
[351679962,1738713038617,-635.36444459,0.000159,2]
[351679964,1738713038629,-96176.40154713,0.000159,2]
[351679966,1738713038639,-283.46096494,0.00015998,2]
[351679968,1738713038648,-510.08297674,0.00015999,2]
[351679970,1738713038658,-500.0,0.00015999,2]
[351679972,1738713038667,-336.48124554,0.00015999,2]
[351679974,1738713038676,-500.0,0.00015999,2]
[351679976,1738713038686,-500.0,0.00015999,2]
[351679978,1738713038695,-257.17186653,0.00015999,2]
[351679980,1738713038704,-243251.42451551,0.00016,15]
[351679982,1738713038715,-10969.271389,0.00016,15]
[351679984,1738713038726,-1306.75266778,0.00016,15]
[351679986,1738713038737,-3966.36441773,0.00016,15]
[351679989,1738713038750,-6419.9056697,0.00016,15]
[351680166,1738713040624,-117354.52856137,0.00016,15]
[351680182,1738713040762,-192282.93926792,0.00016,15]
[351680184,1738713040774,-1178.02051644,0.00016,15]
[351680186,1738713040786,-271.82061553,0.00016,15]
[351680416,1738713043731,-335.02,0.00016,15]
[351680417,1738713043744,-5239.90386476,0.00016,15]
[351680422,1738713043845,-452.112233,0.00016,15]
[351680455,1738713713787,2450.0320504,0.00014922,2]
[351680463,1738714193135,162.811462,0.00015012,2]
[351680511,1738714231955,-356.341,0.0001568,2]
[351680513,1738714231967,-1230.6389,0.00015822,2]
[351680724,1738714237748,-2465.75861875,0.00015822,2]
[351680725,1738714237806,-1774.93,0.00015822,2]
[351680734,1738714239841,-3522.21843536,0.00015822,2]
[351680735,1738714239854,-203.4594429,0.00015839,2]
[351680736,1738714239865,-300.0,0.00015899,2]
[351680737,1738714239876,-2238.13578213,0.000159,2]
[351680738,1738714239888,-688.24284312,0.000159,2]
[351680739,1738714239899,-600.0,0.00015912,2]
[351680740,1738714239911,-500.0,0.00015973,2]
[351680741,1738714239924,-500.0,0.00015973,2]
[351680742,1738714239936,-500.0,0.00015973,2]
[351680743,1738714239948,-500.0,0.00015973,2]
[351680744,1738714239960,-68901.50074397,0.00016,15]
[351680765,1738714242825,-2319.58752228,0.00016,15]
[351680766,1738714242837,-302.23434211,0.00016,15]
[351680782,1738714245879,-2743.8,0.00016,15]
[351680783,1738714245939,-2092.85494945,0.00016,15]
[351680784,1738714274341,500.0,0.00014164,2]
[351680786,1738714403009,225.556115,0.00015008,2]
[351680787,1738714409155,500.0,0.00014164,2]
[351680792,1738714592209,250.0,0.00014981,2]
[351680796,1738714726270,12144.8483121,0.00014996,2]
[351680859,1738715431924,-159.181,0.000152,2]
[351680861,1738715431934,-1000.0,0.00015665,2]
[351680863,1738715431943,-476.57358556,0.00015702,2]
[351680865,1738715431952,-1000.0,0.00015756,2]
[351680867,1738715431961,-1000.0,0.00015847,2]
[351680869,1738715431971,-300.0,0.00015899,2]
[351680871,1738715431980,-602.21248773,0.00015899,2]
[351680873,1738715431990,-3000.0,0.000159,2]
[351680875,1738715431999,-2014.32220398,0.000159,2]
[351680877,1738715432009,-171.81063505,0.000159,2]
[351680879,1738715432018,-600.0,0.00015912,2]
[351680881,1738715432027,-353.52073628,0.00015945,2]
[351680883,1738715432037,-395.57906013,0.00015973,2]
[351680885,1738715432046,-502.7555163,0.00015973,2]
[351680886,1738715432055,-500.0,0.00015973,2]
[351680887,1738715432064,-500.0,0.00015973,2]
[351680888,1738715432074,-500.0,0.00015973,2]
[351680889,1738715432083,-61428.33536702,0.00015999,2]
[351680890,1738715432095,-666.58131058,0.00015999,2]
[351680891,1738715432107,-4309.0434146,0.00015999,2]
[351680892,1738715432117,-500.0,0.00015999,2]
[351680893,1738715432127,-500.0,0.00015999,2]
[351680894,1738715432140,-605.61050264,0.00015999,2]
[351680895,1738715432151,-36211.15494212,0.00016,15]
[351680899,1738715437918,-18733.80439969,0.00016,15]
[351681015,1738715442858,-642.81311,0.00016,15]
[351681023,1738715446003,-1559.2,0.00016,15]
[351681026,1738715613028,500.0,0.00014164,2]
[351681043,1738716423285,334.6794241,0.00014922,2]
[351681096,1738716632234,-158.971,0.000152,2]
[351681098,1738716632244,-383.254,0.0001568,2]
[351681100,1738716632253,-193.0,0.000158,5]
[351681102,1738716632262,-193.12,0.000158,5]
[351681104,1738716632272,-1474.68,0.000159,2]
[351681246,1738716638295,-338.20998351,0.000159,2]
[351681247,1738716638304,-538.72992659,0.000159,2]
[351681249,1738716638316,-47.52053,0.000159,2]
[351681250,1738716638326,-600.0,0.00015912,2]
[351681251,1738716638336,-300.0,0.00015999,2]
[351681252,1738716638347,-152.76,0.00015999,2]
[351681253,1738716638357,-302.48751684,0.00015999,2]
[351681254,1738716638367,-4123.91967822,0.00016,15]
[351681255,1738716638383,-16817.95715934,0.00016,15]
[351681256,1738716638395,-1112.43467812,0.00016,15]
[351681257,1738716638407,-39372.45490244,0.00016,15]
[351681258,1738716638426,-3553.29718945,0.00016,15]
[351681259,1738716638438,-7491.14869272,0.00016,15]
[351681297,1738716640268,-86932.93977399,0.00016,15]
[351681332,1738716641777,520.95100148,0.00018,30]
[351681463,1738716647423,-1750.72,0.00016,15]
[351681464,1738716647435,-11798.33911308,0.00016,15]
[351681465,1738716647447,-54513.47659833,0.00016,15]
[351681466,1738716647459,-8193.45242803,0.00016,15]
[351681467,1738716647471,-391445.28910153,0.00016,15]
[351681469,1738716685252,500.0,0.00014164,2]
[351681471,1738716778239,18478.0966463,0.00014993,2]
[351681485,1738716863716,772.43341686,0.00015012,2]
[351681492,1738717288993,798.67595127,0.00015,2]
[351681494,1738717368689,401.6619208,0.000204,120]
[351681547,1738717835784,-158.666,0.000152,2]
[351681549,1738717835794,-306.603,0.0001568,2]
[351681551,1738717835803,-39.38106,0.0001589,2]
[351681553,1738717835815,-429.14,0.0001589,2]
[351681555,1738717835826,-131.4789409,0.0001589,2]
[351681557,1738717835835,-169.37812797,0.000159,2]
[351681559,1738717835844,-2955.20148767,0.000159,2]
[351681561,1738717835853,-600.0,0.00015912,2]
[351681563,1738717835863,-396.0,0.00015938,2]
[351681565,1738717835872,-401.367,0.00015938,2]
[351681567,1738717835881,-300.0,0.00015972,2]
[351681569,1738717835890,-500.0,0.00015973,2]
[351681571,1738717835899,-521.55307598,0.00015999,2]
[351681573,1738717835909,-500.0,0.00015999,2]
[351681575,1738717835918,-500.0,0.00015999,2]
[351681577,1738717835927,-500.0,0.00015999,2]
[351681579,1738717835937,-540.38868963,0.00015999,2]
[351681582,1738717835946,-101756.33517046,0.00016,15]
[351681585,1738717835957,-15834.51363357,0.00016,15]
[351681588,1738717835969,-1347.6721237,0.00016,15]
[351681592,1738717835980,-1273.32038068,0.00016,15]
[351681831,1738717838278,-7138.15255653,0.00016,15]
[351681834,1738717838289,-301.14453203,0.00016,15]
[351681841,1738717838349,-28840.74491701,0.00016,15]
[351681843,1738717838360,-5744.08005639,0.00016,15]
[351681849,1738717838403,-675.30720304,0.00016,15]
[351682101,1738717840823,-1386.72518369,0.00016,15]
[351682525,1738717846606,-1288.26418683,0.00016,15]
[351682527,1738717846619,-7240.34132159,0.00016,15]
[351682532,1738717892172,500.0,0.00014164,2]
[351682541,1738718481847,24900.0,0.00014993,2]
[351682548,1738718692096,364.800242,0.00014981,2]
[351682552,1738718816131,-245.283,0.0001568,2]
[351682553,1738718816153,-152.98,0.0001586,2]
[351682554,1738718816176,-2659.68133893,0.000159,2]
[351682555,1738718816199,-600.0,0.00015912,2]
[351682556,1738718816222,-300.0,0.00015972,2]
[351682557,1738718816244,-500.0,0.00015973,2]
[351682558,1738718816267,-500.0,0.00015973,2]
[351682559,1738718816288,-500.0,0.00015973,2]
[351682560,1738718816313,-152.0,0.0001599,2]
[351682561,1738718816337,-153.0,0.00015996,2]
[351682562,1738718816359,-153.0,0.00015996,2]
[351682563,1738718816380,-153.0,0.00015996,2]
[351682564,1738718816402,-153.0,0.00015996,2]
[351682565,1738718816427,-153.0,0.00015996,2]
[351682566,1738718816450,-153.0,0.00015996,2]
[351682567,1738718816472,-153.0,0.00015996,2]
[351682568,1738718816494,-153.0,0.00015996,2]
[351682569,1738718816515,-153.0,0.00015996,2]
[351682570,1738718816538,-153.0,0.00015996,2]
[351682571,1738718816565,-153.0,0.00015996,2]
[351682572,1738718816588,-153.0,0.00015996,2]
[351682573,1738718816609,-153.0,0.00015996,2]
[351682574,1738718816763,-153.0,0.00015996,2]
[351682575,1738718816784,-153.0,0.00015996,2]
[351682576,1738718816807,-153.0,0.00015996,2]
[351682577,1738718816828,-153.0,0.00015996,2]
[351682578,1738718816850,-500.0,0.00015999,2]
[351682579,1738718816872,-500.0,0.00015999,2]
[351682580,1738718816894,-500.0,0.00015999,2]
[351682581,1738718816916,-500.0,0.00015999,2]
[351682582,1738718816938,-500.0,0.00015999,2]
[351682583,1738718816960,-500.0,0.00015999,2]
[351682584,1738718816982,-500.0,0.00015999,2]
[351682585,1738718817003,-500.0,0.00015999,2]
[351682586,1738718817025,-500.0,0.00015999,2]
[351682587,1738718817049,-72.30707307,0.00015999,2]
[351682608,1738719030004,500.0,0.00014164,2]
[351682639,1738719033135,-211.51642075,0.000159,2]
[351682640,1738719033145,-163.17447096,0.000159,7]
[351682641,1738719033155,-718.64536316,0.00015912,2]
[351682642,1738719033164,-300.0,0.00015999,2]
[351682643,1738719033174,-427.69292693,0.00015999,2]
[351682644,1738719033184,-314.57496855,0.00015999,2]
[351682645,1738719033193,-500.0,0.00015999,2]
[351682646,1738719033204,-57515.54494373,0.00016,15]
[351682647,1738719033217,-525.49452671,0.00016,15]
[351682648,1738719033230,-1803.1803902,0.00016,15]
[351682691,1738719038666,-14626.72198872,0.00016,15]
[351682693,1738719038677,-304.00000002,0.00016,15]
[351682701,1738719038749,-10854.77183627,0.00016,15]
[351682881,1738719040630,-2146.09197,0.00016,15]
[351682883,1738719040641,-1076.20075559,0.00016,15]
[351682885,1738719040654,-582.04603108,0.00016,15]
[351682887,1738719040666,-457.5,0.00016,15]
[351683186,1738719043787,-315.929,0.00016,15]
[351683188,1738719043799,-7599.4956604,0.00016,15]
[351683224,1738719044121,-1420.361268,0.00016,15]
[351683226,1738719044133,-800.0,0.00016,15]
[351683228,1738719044144,-16637.46827974,0.00016,15]
[351683230,1738719044156,-11762.97981665,0.00016,15]
[351683233,1738719044168,-501.61832,0.00016,15]
[351683285,1738719154428,-689.47311972,0.000159,2]
[351683286,1738719154451,-2395.29722944,0.000159,2]
[351683287,1738719154475,-1974.0,0.00015994,2]
[351683288,1738719154500,-541.034,0.00015994,2]
[351683289,1738719154525,-2297.0,0.00015994,2]
[351683290,1738719154549,-151.57,0.00016,2]
[351683291,1738719154576,-151.57,0.00016,2]
[351683292,1738719154601,-151.57,0.00016,2]
[351683293,1738719154623,-151.57,0.00016,2]
[351683294,1738719154646,-151.60496093,0.00016,2]
[351683295,1738719154673,-126345.31068991,0.00016,15]
[351683305,1738719347494,24900.0,0.00014965,2]
[351683311,1738719571336,183.446913,0.00015007,2]
[351683320,1738719780385,173.25877629,0.00015012,5]
[351683322,1738719888206,5108.47463121,0.00020453,120]
[351683338,1738720232959,-345.69174732,0.00015127,2]
[351683340,1738720232968,-1655.2950616,0.00015127,2]
[351683342,1738720232978,-500.0,0.00015238,2]
[351683344,1738720232987,-196.659,0.0001568,2]
[351683346,1738720232996,-300.0,0.00015716,2]
[351683348,1738720233005,-8663.20565508,0.00015717,2]
[351683351,1738720233016,-173.0,0.000158,2]
[351683353,1738720233026,-173.0,0.000158,2]
[351683354,1738720233035,-173.0,0.000158,5]
[351683356,1738720233044,-717.70969354,0.000158,2]
[351683358,1738720233054,-47831.0,0.000159,2]
[351683360,1738720233063,-2155.76750655,0.000159,2]
[351683362,1738720233073,-308.9874986,0.000159,2]
[351683364,1738720233083,-215.6880554,0.000159,2]
[351683367,1738720233092,-154.4937493,0.000159,2]
[351683368,1738720233102,-215.6880554,0.000159,2]
[351683371,1738720233111,-164.8466325,0.000159,2]
[351683373,1738720233123,-435.0102687,0.000159,2]
[351683375,1738720233133,-436.0581167,0.000159,2]
[351683377,1738720233143,-154.4937493,0.000159,2]
[351683379,1738720233153,-154.4937493,0.000159,2]
[351683381,1738720233163,-224.25882965,0.000159,2]
[351683383,1738720233174,-215.6880554,0.000159,2]
[351683385,1738720233184,-154.4937493,0.000159,2]
[351683387,1738720233193,-154.4937493,0.000159,2]
[351683389,1738720233203,-215.6880554,0.000159,2]
[351683391,1738720233213,-311.5974993,0.000159,2]
[351683393,1738720233222,-354.5958847,0.000159,2]
[351683395,1738720233232,-154.0,0.00015922,2]
[351683397,1738720233241,-154.0,0.00015922,2]
[351683399,1738720233250,-154.0,0.00015922,2]
[351683401,1738720233259,-154.0,0.00015922,2]
[351683403,1738720233270,-154.0,0.00015922,2]
[351683405,1738720233279,-154.0,0.00015922,2]
[351683407,1738720233289,-154.0,0.00015922,2]
[351683409,1738720233299,-154.0,0.00015922,2]
[351683411,1738720233308,-155.43,0.00015922,2]
[351683413,1738720233317,-151.0,0.00015922,2]
[351683415,1738720233327,-151.0,0.00015922,2]
[351683417,1738720233336,-151.0,0.00015922,2]
[351683419,1738720233345,-151.0,0.00015922,2]
[351683421,1738720233355,-151.0,0.00015922,2]
[351683423,1738720233364,-151.0,0.00015922,2]
[351683425,1738720233374,-151.02,0.00015922,2]
[351683427,1738720233383,-500.0,0.00015973,2]
[351683429,1738720233394,-371.80212008,0.00015973,2]
[351683431,1738720233402,-717.7096935,0.00015975,2]
[351683433,1738720233412,-152.2858713,0.0001598,2]
[351683435,1738720233422,-261.55,0.00015994,2]
[351683437,1738720233431,-1974.0,0.00015994,2]
[351683439,1738720233441,-537.0,0.00015994,2]
[351683441,1738720233450,-2297.0,0.00015994,2]
[351683443,1738720233459,-396.0,0.00015994,2]
[351683445,1738720233468,-153.0,0.00015994,2]
[351683447,1738720233477,-500.0,0.00015999,2]
[351683449,1738720233487,-446.48101817,0.00015999,2]
[351683451,1738720233497,-65368.81693466,0.00016,15]
[351683458,1738720233556,-1000.0,0.00016,15]
[351683966,1738720238623,-150.909,0.00015994,2]
[351683968,1738720238633,-21160.47157785,0.00016,15]
[351684190,1738720240752,-542.11698002,0.00016,15]
[351684417,1738720246685,-154.4937493,0.000159,2]
[351684418,1738720246696,-25183.15967396,0.00016,15]
[351684419,1738720246709,-5076.58065023,0.00016,15]
[351684420,1738720246818,-1286.09216748,0.00016,15]
[351684450,1738720308838,24545.1772363,0.00015007,2]
[351684455,1738720458534,268.030366,0.00014998,2]
[351684461,1738721030801,188.70191138,0.00015012,2]
[351684462,1738721044118,500.0,0.00014164,2]
[351684465,1738721086955,160.71,0.00020453,120]
[351684483,1738721431946,-319.8436583,0.00015127,2]
[351684484,1738721431957,-500.0,0.00015519,2]
[351684485,1738721431967,-61.7863877,0.00015519,2]
[351684486,1738721431978,-438.2136123,0.00015519,2]
[351684487,1738721431988,-500.0,0.00015519,2]
[351684488,1738721431998,-331.90779785,0.00015519,2]
[351684489,1738721432008,-157.328,0.0001568,2]
[351684490,1738721432017,-678.82418488,0.0001585,2]
[351684491,1738721432027,-396.0,0.00015895,2]